[Event "Kvibergspelen September 2019"]
[Site "Prioritet Serneke Arena, Krutvagen 2, Gothenburg, Sweden"]
[Date "2019.09.27"]
[Round "3.17"]
[White "Wernberg, Hugo"]
[Black "Jaksland, Tim"]
[Result "0-1"]
[TimeControl "15 minutes + 5 seconds per move from move one (Round 1 - 4) / 90 minutes + 30 seconds per move from move one (Round 5 - 8)"]
[BlackTitle "FM"]
[WhiteFideId "1737511"]
[BlackFideId "1401084"]
[WhiteElo "1999"]
[BlackElo "2214"]

1. e4 {[%clk 00:15:08]} c5 {[%clk 00:15:08]} {[%emt 00:00:03]} 2. Nf3 {[%clk
00:15:12]} {[%emt 00:00:01]} d6 {[%clk 00:15:11]} {[%emt 00:00:02]} 3. d4
{[%clk 00:15:16]} cxd4 {[%clk 00:15:15]} {[%emt 00:00:01]} 4. Nxd4 {[%clk
00:15:19]} {[%emt 00:00:02]} Nf6 {[%clk 00:15:19]} 5. Nc3 {[%clk 00:15:22]}
{[%emt 00:00:02]} a6 {[%clk 00:15:23]} 6. Be2 {[%clk 00:15:21]} {[%emt
00:00:06]} e5 {[%clk 00:15:24]} {[%emt 00:00:04]} 7. Nb3 {[%clk 00:15:24]}
{[%emt 00:00:02]} Be7 {[%clk 00:15:21]} {[%emt 00:00:08]} 8. O-O {[%clk
00:15:24]} {[%emt 00:00:04]} O-O {[%clk 00:15:23]} {[%emt 00:00:04]} 9. Kh1
{[%clk 00:15:26]} {[%emt 00:00:02]} b5 {[%clk 00:14:14]} {[%emt 00:01:15]} 10.
Bg5 {[%clk 00:14:54]} {[%emt 00:00:36]} Nbd7 {[%clk 00:13:45]} {[%emt
00:00:34]} 11. a3 {[%clk 00:13:01]} {[%emt 00:01:59]} Bb7 {[%clk 00:13:30]}
{[%emt 00:00:21]} 12. f3 {[%clk 00:11:52]} {[%emt 00:01:13]} Rc8 {[%clk
00:13:15]} {[%emt 00:00:20]} 13. Qd2 {[%clk 00:11:29]} {[%emt 00:00:27]} Qc7
{[%clk 00:12:05]} {[%emt 00:01:16]} 14. Rfd1 {[%clk 00:10:53]} {[%emt
00:00:40]} Rfd8 {[%clk 00:11:58]} {[%emt 00:00:12]} 15. Rac1 {[%clk 00:10:25]}
{[%emt 00:00:34]} Nb6 {[%clk 00:11:01]} {[%emt 00:01:03]} 16. Bxf6 {[%clk
00:08:43]} {[%emt 00:01:46]} Bxf6 {[%clk 00:11:04]} {[%emt 00:00:02]} 17. Nd5
{[%clk 00:08:43]} {[%emt 00:00:05]} Nxd5 {[%clk 00:10:10]} {[%emt 00:00:59]} 18.
exd5 {[%clk 00:08:43]} {[%emt 00:00:04]} h6 {[%clk 00:10:12]} {[%emt 00:00:03]}
19. Qd3 {[%clk 00:07:21]} {[%emt 00:01:28]} Bg5 {[%clk 00:10:06]} {[%emt
00:00:11]} 20. Nd2 {[%clk 00:07:22]} {[%emt 00:00:04]} Qb6 {[%clk 00:08:23]}
{[%emt 00:01:49]} 21. c4 {[%clk 00:05:26]} {[%emt 00:02:01]} Qe3 {[%clk
00:06:19]} {[%emt 00:02:09]} 22. Rc3 {[%clk 00:03:57]} {[%emt 00:01:33]} Qxd3
{[%clk 00:05:31]} {[%emt 00:00:53]} 23. Bxd3 {[%clk 00:03:58]} {[%emt
00:00:04]} Bxd2 {[%clk 00:04:47]} {[%emt 00:00:49]} 24. Rxd2 {[%clk 00:04:00]}
{[%emt 00:00:02]} bxc4 {[%clk 00:04:43]} {[%emt 00:00:10]} 25. Bxc4 {[%clk
00:04:03]} {[%emt 00:00:03]} a5 {[%clk 00:04:07]} {[%emt 00:00:41]} 26. Rdc2
{[%clk 00:02:47]} {[%emt 00:01:20]} Kf8 {[%clk 00:03:35]} {[%emt 00:00:37]} 27.
Kg1 {[%clk 00:01:57]} {[%emt 00:00:54]} Ke7 {[%clk 00:03:16]} {[%emt 00:00:24]}
28. Kf2 {[%clk 00:01:59]} {[%emt 00:00:03]} Rc7 {[%clk 00:03:20]} {[%emt
00:00:02]} 29. Ba2 {[%clk 00:01:26]} {[%emt 00:00:38]} Rxc3 {[%clk 00:03:20]}
{[%emt 00:00:05]} 30. Rxc3 {[%clk 00:01:29]} {[%emt 00:00:02]} Rc8 {[%clk
00:03:14]} {[%emt 00:00:11]} 31. Rxc8 {[%clk 00:01:27]} {[%emt 00:00:07]} Bxc8
{[%clk 00:03:18]} 32. Ke3 {[%clk 00:01:20]} {[%emt 00:00:12]} Kd7 {[%clk
00:02:45]} {[%emt 00:00:38]} 33. f4 {[%clk 00:01:08]} {[%emt 00:00:17]} f6
{[%clk 00:02:44]} {[%emt 00:00:06]} 34. g3 {[%clk 00:00:54]} {[%emt 00:00:19]}
Kc7 {[%clk 00:02:45]} {[%emt 00:00:05]} 35. Kd3 {[%clk 00:00:51]} {[%emt
00:00:08]} Kb6 {[%clk 00:02:48]} {[%emt 00:00:02]} 36. b4 {[%clk 00:00:55]}
axb4 {[%clk 00:02:34]} {[%emt 00:00:20]} 37. axb4 {[%clk 00:00:58]} exf4 {[%clk
00:02:18]} {[%emt 00:00:21]} 38. gxf4 {[%clk 00:01:02]} {[%emt 00:00:01]} g5
{[%clk 00:02:20]} {[%emt 00:00:03]} 39. fxg5 {[%clk 00:00:53]} {[%emt
00:00:14]} hxg5 {[%clk 00:01:59]} {[%emt 00:00:26]} 40. Bc4 {[%clk 00:00:20]}
{[%emt 00:00:38]} Bh3 {[%clk 00:01:18]} {[%emt 00:00:46]} 41. Ke3 {[%clk
00:00:14]} {[%emt 00:00:10]} Bf5 {[%clk 00:01:09]} {[%emt 00:00:14]} 42. Kd4
{[%clk 00:00:18]} {[%emt 00:00:02]} Bb1 {[%clk 00:00:58]} {[%emt 00:00:12]} 43.
Ke3 {[%clk 00:00:20]} {[%emt 00:00:07]} Bg6 {[%clk 00:00:36]} {[%emt 00:00:27]}
44. Kd4 {[%clk 00:00:22]} {[%emt 00:00:03]} Be8 {[%clk 00:00:33]} {[%emt
00:00:08]} 45. Ke4 {[%clk 00:00:24]} {[%emt 00:00:02]} Bd7 {[%clk 00:00:38]}
{[%emt 00:00:01]} 46. Ke3 {[%clk 00:00:25]} {[%emt 00:00:04]} f5 {[%clk
00:00:32]} {[%emt 00:00:11]} 47. Kd4 {[%clk 00:00:24]} {[%emt 00:00:06]} Be8
{[%clk 00:00:22]} {[%emt 00:00:15]} 48. Bd3 {[%emt 00:00:02]} f4 {[%clk
00:00:20]} {[%emt 00:00:08]} 49. Be2 {[%clk 00:00:29]} {[%emt 00:00:02]} Bg6
{[%clk 00:00:22]} {[%emt 00:00:03]} 50. Bf1 {[%clk 00:00:24]} {[%emt 00:00:10]}
Bf5 {[%clk 00:00:22]} {[%emt 00:00:05]} 51. Be2 {[%clk 00:00:19]} {[%emt
00:00:10]} Bh3 {[%clk 00:00:17]} {[%emt 00:00:10]} 52. Ke4 {[%clk 00:00:08]}
{[%emt 00:00:16]} Bg2+ {[%clk 00:00:13]} {[%emt 00:00:10]} 53. Bf3 {[%clk
00:00:11]} {[%emt 00:00:02]} Bxf3+ {[%clk 00:00:06]} {[%emt 00:00:12]} 54. Kxf3
{[%clk 00:00:14]} Kb5 {[%clk 00:00:11]} 55. Kg4 {[%clk 00:00:15]} {[%emt
00:00:05]} Kxb4 {[%clk 00:00:14]} {[%emt 00:00:02]} 56. h4 {[%clk 00:00:16]}
{[%emt 00:00:03]} gxh4 57. Kxh4 {[%clk 00:00:20]} Kc4 {[%clk 00:00:22]} 58. Kg4
{[%clk 00:00:24]} Kxd5 {[%clk 00:00:26]} {[%emt 00:00:01]} 59. Kxf4 {[%clk
00:00:28]} Kd4 {[%clk 00:00:30]} 60. Kf3 {[%clk 00:00:31]} {[%emt 00:00:01]}
Kd3 {[%clk 00:00:35]} 61. Kf2 {[%clk 00:00:35]} d5 {[%clk 00:00:39]} 62. Ke1
{[%clk 00:00:39]} d4 {[%clk 00:00:43]} 63. Kd1 {[%clk 00:00:44]} Kc3 {[%clk
00:00:48]} {[%emt 00:00:02]} 64. Kc1 {[%clk 00:00:48]} d3 {[%clk 00:00:51]}
{[%emt 00:00:01]} 65. Kd1 {[%clk 00:00:52]} d2 {[%clk 00:00:55]} 66. Ke2 {[%clk
00:00:56]} Kc2 {[%clk 00:01:00]} 0-1

[Event "Kvibergspelen September 2019"]
[Site "Prioritet Serneke Arena, Krutvagen 2, Gothenburg, Sweden"]
[Date "2019.09.27"]
[Round "3.18"]
[White "Trost, Edvin"]
[Black "Hansen, Lars"]
[Result "1-0"]
[TimeControl "15 minutes + 5 seconds per move from move one (Round 1 - 4) / 90 minutes + 30 seconds per move from move one (Round 5 - 8)"]
[WhiteFideId "1729519"]
[BlackFideId "1402528"]
[WhiteElo "1982"]
[BlackElo "2207"]

1. Nf3 {[%clk 00:15:07]} {[%emt 00:00:01]} d5 {[%clk 00:15:06]} {[%emt
00:00:05]} 2. d4 {[%clk 00:15:07]} {[%emt 00:00:05]} Nf6 {[%clk 00:15:09]}
{[%emt 00:00:02]} 3. e3 {[%clk 00:14:56]} {[%emt 00:00:16]} c6 {[%clk
00:14:46]} {[%emt 00:00:29]} 4. b3 {[%clk 00:14:39]} {[%emt 00:00:21]} Bg4
{[%clk 00:14:40]} {[%emt 00:00:11]} 5. Bd3 {[%clk 00:14:25]} {[%emt 00:00:18]}
Ne4 {[%clk 00:13:37]} {[%emt 00:01:08]} 6. Bb2 {[%clk 00:14:09]} {[%emt
00:00:20]} e6 {[%clk 00:13:23]} {[%emt 00:00:20]} 7. a3 {[%clk 00:14:04]}
{[%emt 00:00:10]} Nd7 {[%clk 00:13:14]} {[%emt 00:00:13]} 8. Nbd2 {[%clk
00:14:02]} {[%emt 00:00:08]} f5 {[%clk 00:13:06]} {[%emt 00:00:14]} 9. c4
{[%clk 00:13:29]} {[%emt 00:00:37]} Bd6 {[%clk 00:12:50]} {[%emt 00:00:21]} 10.
Qc2 {[%clk 00:13:21]} {[%emt 00:00:13]} O-O {[%clk 00:12:44]} {[%emt 00:00:11]}
11. Ne5 {[%clk 00:12:55]} {[%emt 00:00:31]} Bxe5 {[%clk 00:10:53]} {[%emt
00:01:56]} 12. dxe5 {[%clk 00:12:52]} {[%emt 00:00:08]} Qh4 {[%emt 00:00:25]}
13. O-O {[%clk 00:10:12]} {[%emt 00:02:44]} Rad8 {[%clk 00:10:35]} {[%emt
00:00:04]} 14. b4 {[%clk 00:09:47]} {[%emt 00:00:30]} Nxd2 {[%clk 00:07:43]}
{[%emt 00:02:58]} 15. Qxd2 {[%clk 00:09:51]} Nb6 {[%clk 00:07:18]} {[%emt
00:00:29]} 16. c5 {[%clk 00:07:50]} {[%emt 00:02:07]} Nd7 {[%clk 00:05:02]}
{[%emt 00:02:20]} 17. f3 {[%clk 00:07:36]} {[%emt 00:00:19]} Bh5 {[%clk
00:05:02]} {[%emt 00:00:05]} 18. f4 {[%clk 00:07:30]} {[%emt 00:00:12]} Kh8
{[%clk 00:04:33]} {[%emt 00:00:34]} 19. Qf2 {[%clk 00:06:58]} {[%emt 00:00:36]}
Qe7 {[%clk 00:04:01]} {[%emt 00:00:36]} 20. Be2 {[%clk 00:03:28]} {[%emt
00:03:36]} Bxe2 {[%clk 00:03:57]} {[%emt 00:00:09]} 21. Qxe2 {[%clk 00:03:33]}
g5 {[%clk 00:03:44]} {[%emt 00:00:18]} 22. g3 {[%clk 00:03:29]} {[%emt
00:00:09]} b6 {[%clk 00:02:42]} {[%emt 00:01:07]} 23. cxb6 {[%clk 00:01:09]}
{[%emt 00:02:25]} axb6 {[%clk 00:02:46]} {[%emt 00:00:01]} 24. a4 {[%clk
00:00:52]} {[%emt 00:00:22]} c5 {[%clk 00:02:16]} {[%emt 00:00:34]} 25. b5
{[%clk 00:00:46]} {[%emt 00:00:12]} Ra8 {[%clk 00:02:10]} {[%emt 00:00:11]} 26.
Qd2 {[%clk 00:00:39]} {[%emt 00:00:11]} gxf4 {[%clk 00:01:10]} {[%emt
00:01:06]} 27. Rxf4 {[%clk 00:00:18]} {[%emt 00:00:25]} Rfc8 {[%clk 00:00:53]}
{[%emt 00:00:23]} 28. a5 {[%clk 00:00:17]} {[%emt 00:00:06]} bxa5 {[%clk
00:00:51]} {[%emt 00:00:07]} 29. Rxa5 {[%clk 00:00:22]} Qd8 {[%clk 00:00:25]}
{[%emt 00:00:31]} 30. Bc3 {[%clk 00:00:10]} {[%emt 00:00:17]} Rxa5 {[%clk
00:00:08]} {[%emt 00:00:22]} 31. Bxa5 {[%clk 00:00:14]} {[%emt 00:00:01]} Nb6
{[%clk 00:00:11]} {[%emt 00:00:01]} 32. e4 {[%clk 00:00:07]} {[%emt 00:00:12]}
Nc4 {[%emt 00:00:11]} 1-0

[Event "Kvibergspelen September 2019"]
[Site "Prioritet Serneke Arena, Krutvagen 2, Gothenburg, Sweden"]
[Date "2019.09.27"]
[Round "3.19"]
[White "Bjorklund, Thomas"]
[Black "Seo, Jung Hyun"]
[Result "0-1"]
[TimeControl "15 minutes + 5 seconds per move from move one (Round 1 - 4) / 90 minutes + 30 seconds per move from move one (Round 5 - 8)"]
[WhiteFideId "1724576"]
[BlackFideId "1735667"]
[WhiteElo "2169"]
[BlackElo "1685"]

1. e4 {[%clk 00:15:08]} {[%emt 00:00:01]} c6 {[%clk 00:15:01]} {[%emt
00:00:09]} 2. d4 {[%clk 00:15:11]} d5 {[%clk 00:15:05]} {[%emt 00:00:03]} 3.
exd5 {[%clk 00:15:15]} cxd5 {[%clk 00:15:10]} 4. Nf3 {[%clk 00:15:19]} {[%emt
00:00:01]} Bg4 {[%clk 00:15:13]} {[%emt 00:00:02]} 5. Be2 {[%clk 00:15:22]} Nc6
{[%clk 00:15:13]} {[%emt 00:00:05]} 6. O-O {[%clk 00:15:23]} {[%emt 00:00:03]}
e6 {[%clk 00:15:17]} 7. Bg5 {[%clk 00:15:21]} {[%emt 00:00:07]} Qc7 {[%clk
00:14:50]} {[%emt 00:00:33]} 8. h3 {[%clk 00:15:01]} {[%emt 00:00:25]} Bxf3
{[%clk 00:14:52]} {[%emt 00:00:03]} 9. Bxf3 {[%clk 00:15:03]} {[%emt 00:00:03]}
Bd6 {[%clk 00:14:55]} {[%emt 00:00:02]} 10. Nc3 {[%clk 00:14:56]} {[%emt
00:00:12]} a6 {[%clk 00:14:58]} {[%emt 00:00:02]} 11. Re1 {[%clk 00:14:51]}
{[%emt 00:00:09]} Nge7 {[%clk 00:15:01]} {[%emt 00:00:02]} 12. Bg4 {[%clk
00:14:34]} {[%emt 00:00:23]} O-O {[%clk 00:14:27]} {[%emt 00:00:39]} 13. Ne2
{[%clk 00:14:13]} {[%emt 00:00:26]} Kh8 {[%clk 00:14:03]} {[%emt 00:00:29]} 14.
c3 {[%clk 00:13:22]} {[%emt 00:00:57]} b5 {[%clk 00:13:32]} {[%emt 00:00:35]}
15. Bh4 {[%clk 00:13:18]} {[%emt 00:00:08]} b4 {[%clk 00:13:12]} {[%emt
00:00:25]} 16. Bg3 {[%clk 00:13:14]} {[%emt 00:00:10]} Bxg3 {[%clk 00:13:13]}
{[%emt 00:00:04]} 17. Nxg3 {[%clk 00:13:14]} {[%emt 00:00:04]} bxc3 {[%clk
00:13:18]} {[%emt 00:00:01]} 18. bxc3 {[%clk 00:13:18]} {[%emt 00:00:02]} Na5
{[%clk 00:12:53]} {[%emt 00:00:29]} 19. Qd3 {[%clk 00:13:08]} {[%emt 00:00:15]}
Nc4 {[%clk 00:12:41]} {[%emt 00:00:17]} 20. Nh5 {[%clk 00:12:54]} {[%emt
00:00:19]} Rfc8 {[%clk 00:11:44]} {[%emt 00:01:02]} 21. Rab1 {[%clk 00:12:39]}
{[%emt 00:00:20]} Nd6 {[%clk 00:11:39]} {[%emt 00:00:10]} 22. Rb3 {[%clk
00:12:24]} {[%emt 00:00:20]} a5 {[%clk 00:11:39]} {[%emt 00:00:04]} 23. a4
{[%clk 00:12:16]} {[%emt 00:00:12]} Qc4 {[%clk 00:11:37]} {[%emt 00:00:08]} 24.
Qxc4 {[%clk 00:12:19]} {[%emt 00:00:02]} Rxc4 {[%clk 00:11:40]} 25. Reb1 {[%clk
00:11:43]} {[%emt 00:00:42]} h6 {[%clk 00:11:08]} {[%emt 00:00:37]} 26. Rb8+
{[%clk 00:11:15]} {[%emt 00:00:33]} Rxb8 {[%clk 00:10:47]} {[%emt 00:00:26]} 27.
Rxb8+ {[%clk 00:11:18]} {[%emt 00:00:02]} Nec8 {[%clk 00:10:51]} 28. Nf4 {[%clk
00:10:45]} {[%emt 00:00:38]} Kh7 {[%clk 00:10:34]} {[%emt 00:00:22]} 29. Ra8
{[%clk 00:10:20]} {[%emt 00:00:30]} Rxa4 {[%clk 00:10:37]} {[%emt 00:00:03]} 30.
Nd3 {[%clk 00:10:01]} {[%emt 00:00:22]} Ra3 {[%clk 00:10:29]} {[%emt 00:00:14]}
31. Nc5 {[%clk 00:09:55]} {[%emt 00:00:11]} Rxc3 {[%clk 00:10:14]} {[%emt
00:00:21]} 32. Rxa5 {[%clk 00:09:55]} {[%emt 00:00:05]} Rc4 {[%clk 00:10:18]}
33. Nb3 {[%clk 00:09:49]} {[%emt 00:00:10]} Rb4 {[%clk 00:10:12]} {[%emt
00:00:11]} 34. Bd1 {[%clk 00:09:51]} {[%emt 00:00:03]} Nc4 {[%clk 00:10:05]}
{[%emt 00:00:12]} 35. Rc5 {[%clk 00:09:36]} {[%emt 00:00:20]} N8d6 {[%clk
00:10:07]} {[%emt 00:00:03]} 36. Bc2+ {[%clk 00:09:32]} {[%emt 00:00:09]} g6
{[%clk 00:10:04]} {[%emt 00:00:07]} 37. Rc7 {[%clk 00:09:12]} {[%emt 00:00:26]}
Kg7 {[%clk 00:10:03]} {[%emt 00:00:06]} 38. Nc5 {[%clk 00:09:04]} {[%emt
00:00:13]} Kf6 {[%clk 00:09:41]} {[%emt 00:00:27]} 39. Nd7+ {[%clk 00:09:03]}
{[%emt 00:00:06]} Kg5 {[%clk 00:09:20]} {[%emt 00:00:27]} 40. Bd3 {[%clk
00:08:59]} {[%emt 00:00:09]} Rb7 {[%clk 00:09:11]} {[%emt 00:00:14]} 41. Rxb7
{[%clk 00:08:56]} {[%emt 00:00:08]} Nxb7 {[%clk 00:09:15]} 42. Kf1 {[%clk
00:08:28]} {[%emt 00:00:33]} Nbd6 {[%clk 00:09:19]} 43. Ke2 {[%clk 00:08:19]}
{[%emt 00:00:15]} Nf5 {[%clk 00:09:01]} {[%emt 00:00:23]} 44. Bxf5 {[%clk
00:08:16]} {[%emt 00:00:08]} Kxf5 {[%clk 00:09:05]} 45. Kd3 {[%clk 00:08:08]}
{[%emt 00:00:13]} e5 {[%clk 00:09:07]} {[%emt 00:00:03]} 46. f3 {[%clk
00:07:58]} {[%emt 00:00:15]} Ke6 {[%clk 00:08:45]} {[%emt 00:00:27]} 47. Nc5+
{[%clk 00:07:39]} {[%emt 00:00:23]} Kd6 {[%clk 00:08:47]} {[%emt 00:00:01]} 48.
Nb7+ {[%clk 00:07:41]} {[%emt 00:00:05]} Kc7 {[%clk 00:08:35]} {[%emt
00:00:17]} 49. Nc5 {[%clk 00:07:42]} {[%emt 00:00:04]} Kc6 {[%clk 00:08:30]}
{[%emt 00:00:10]} 50. Na6 {[%clk 00:07:25]} {[%emt 00:00:21]} f6 {[%clk
00:08:16]} {[%emt 00:00:20]} 51. g3 {[%clk 00:06:35]} {[%emt 00:00:56]} f5
{[%clk 00:08:19]} {[%emt 00:00:01]} 52. dxe5 {[%clk 00:05:52]} {[%emt
00:00:47]} Nxe5+ {[%clk 00:08:23]} 53. Ke3 {[%clk 00:05:56]} {[%emt 00:00:02]}
Kb5 {[%clk 00:08:09]} {[%emt 00:00:19]} 54. Nc7+ {[%clk 00:05:54]} {[%emt
00:00:07]} Kc4 {[%clk 00:08:13]} {[%emt 00:00:01]} 55. Ne6 {[%clk 00:05:46]}
{[%emt 00:00:14]} Nc6 {[%clk 00:08:05]} {[%emt 00:00:12]} 56. f4 {[%clk
00:05:21]} {[%emt 00:00:31]} d4+ {[%clk 00:08:07]} {[%emt 00:00:02]} 57. Kd2
{[%clk 00:05:25]} {[%emt 00:00:01]} d3 {[%clk 00:07:50]} {[%emt 00:00:22]} 58.
Nf8 {[%clk 00:05:23]} {[%emt 00:00:07]} g5 {[%clk 00:07:35]} {[%emt 00:00:19]}
59. fxg5 {[%clk 00:05:25]} {[%emt 00:00:04]} hxg5 {[%clk 00:07:40]} 60. Ne6
{[%clk 00:05:21]} {[%emt 00:00:08]} g4 {[%clk 00:07:02]} {[%emt 00:00:43]} 61.
h4 {[%clk 00:05:06]} {[%emt 00:00:20]} Ne5 {[%clk 00:07:06]} {[%emt 00:00:01]}
62. Ng7 {[%clk 00:04:43]} {[%emt 00:00:28]} Nf3+ {[%clk 00:07:07]} {[%emt
00:00:04]} 63. Kd1 {[%clk 00:04:47]} f4 {[%clk 00:06:34]} {[%emt 00:00:38]} 64.
gxf4 {[%clk 00:04:42]} {[%emt 00:00:10]} Nxh4 {[%clk 00:06:27]} {[%emt
00:00:12]} 65. Nh5 {[%clk 00:04:25]} {[%emt 00:00:22]} Nf5 {[%clk 00:06:26]}
{[%emt 00:00:07]} 66. Kd2 {[%clk 00:04:11]} {[%emt 00:00:19]} g3 {[%clk
00:06:27]} {[%emt 00:00:04]} 67. Nxg3 {[%clk 00:03:27]} {[%emt 00:00:49]} Nxg3
{[%clk 00:06:31]} 68. Ke3 {[%clk 00:03:31]} {[%emt 00:00:01]} Kc3 {[%clk
00:06:32]} {[%emt 00:00:04]} 69. Kf3 {[%clk 00:03:35]} Nf5 {[%clk 00:06:36]}
{[%emt 00:00:02]} 70. Ke4 {[%clk 00:03:39]} Ne7 {[%clk 00:06:39]} {[%emt
00:00:02]} 71. Ke5 {[%clk 00:03:43]} {[%emt 00:00:01]} d2 {[%clk 00:06:44]} 72.
Ke6 {[%clk 00:03:47]} d1=Q {[%clk 00:06:46]} {[%emt 00:00:03]} 73. Kxe7 {[%clk
00:03:51]} {[%emt 00:00:02]} Qf3 {[%clk 00:06:49]} 0-1